Workbook

Sheet 1. Info
AC1: =IF('3. Data_Input_Sheet'!M12=0, "", '3. Data_Input_Sheet'!M12) -> 
P11: Version | Q11: 6
F16: Utility Name
F18: Service Territory
F20: Assigned EB Number | AA20: Company Name
Z21: 1 | AA21: Algoma Power Inc.
F22: Name and Title | Z22: 2 | AA22: Atikokan Hydro Inc.
Z23: 3 | AA23: Attawapiskat Power Corp.
F24: Phone Number | Z24: 4 | AA24: Bluewater Power Distribution Corporation
Z25: 5 | AA25: Brant County Power Inc.
F26: Email Address | Z26: 6 | AA26: Brantford Power Inc.
Z27: 7 | AA27: Burlington Hydro Inc.
Z28: 8 | AA28: Cambridge and North Dumfries Hydro Inc.
Z29: 9 | AA29: Canadian Niagara Power Inc.
Z30: 10 | AA30: Centre Wellington Hydro Ltd.
Z31: 11 | AA31: Chapleau Public Utilities Corporation
Z32: 12 | AA32: Clinton Power Corporation
Z33: 13 | AA33: COLLUS Power Corporation
Z34: 14 | AA34: Cooperative Hydro Embrun Inc.
Z35: 15 | AA35: E.L.K. Energy Inc.
Z36: 16 | AA36: Enersource Hydro Mississauga Inc.
Z37: 17 | AA37: Entegrus Powerlines Inc.
Z38: 18 | AA38: ENWIN Utilities Ltd.
Z39: 19 | AA39: Erie Thames Powerlines Corporation
Z40: 20 | AA40: Espanola Regional Hydro Distribution Corporation
Z41: 21 | AA41: Essex Powerlines Corporation
Z42: 22 | AA42: Festival Hydro Inc.
Z43: 23 | AA43: Festival Hydro Inc. - Hensall
Z44: 24 | AA44: Fort Albany Power Corporation
Z45: 25 | AA45: Fort Frances Power Corporation
Z46: 26 | AA46: Greater Sudbury Hydro Inc.
Z47: 27 | AA47: Grimsby Power Inc.
Z48: 28 | AA48: Guelph Hydro Electric Systems Inc.
Z49: 29 | AA49: Haldimand County Hydro Inc.
Z50: 30 | AA50: Halton Hills Hydro Inc.
Z51: 31 | AA51: Hearst Power Distribution Company Limited
Z52: 32 | AA52: Horizon Utilities Corporation
Z53: 33 | AA53: Hydro 2000 Inc.
Z54: 34 | AA54: Hydro Hawkesbury Inc.
Z55: 35 | AA55: Hydro One Brampton Networks Inc.
Z56: 36 | AA56: Hydro One Networks Inc.
Z57: 37 | AA57: Hydro Ottawa Limited
Z58: 38 | AA58: Innisfil Hydro Distribution Systems Limited
Z59: 39 | AA59: Kashechewan Power Corporation
Z60: 40 | AA60: Kenora Hydro Electric Corporation Ltd.
Z61: 41 | AA61: Kingston Hydro Corporation
Z62: 42 | AA62: Kitchener-Wilmot Hydro Inc.
Z63: 43 | AA63: Lakefront Utilities Inc.
Z64: 44 | AA64: Lakeland Power Distribution Ltd.
Z65: 45 | AA65: London Hydro Inc.
Z66: 46 | AA66: Midland Power Utility Corporation
Z67: 47 | AA67: Milton Hydro Distribution inc.
Z68: 48 | AA68: Newmarket - Tay Power Distribution Ltd.
Z69: 49 | AA69: Niagara Peninsula Energy Inc.
Z70: 50 | AA70: Niagara-on-the-Lake Hydro Inc.
Z71: 51 | AA71: Norfolk Power Distribution Inc.
Z72: 52 | AA72: North Bay Hydro Distribution Limited
Z73: 53 | AA73: Northern Ontario Wires Inc.
Z74: 54 | AA74: Oakville Hydro Electricity Distribution Inc.
Z75: 55 | AA75: Orangeville Hydro Limited
Z76: 56 | AA76: Orillia Power Distribution Corporation
Z77: 57 | AA77: Oshawa PUC Networks Inc.
Z78: 58 | AA78: Ottawa River Power Corporation
Z79: 59 | AA79: Parry Sound Power Corporation
Z80: 60 | AA80: Peterborough Distribution Incorporated
Z81: 61 | AA81: PowerStream Inc.
Z82: 62 | AA82: PUC Distribution Inc.
Z83: 63 | AA83: Renfrew Hydro Inc.
Z84: 64 | AA84: Rideau St. Lawrence Distribution Inc.
Z85: 65 | AA85: Sioux Lookout Hydro Inc.
Z86: 66 | AA86: St. Thomas Energy Inc.
Z87: 67 | AA87: Thunder Bay Hydro Electricity Distribution Inc.
Z88: 68 | AA88: Tillsonburg Hydro Inc.
Z89: 69 | AA89: Toronto Hydro-Electric System Limited
Z90: 70 | AA90: Veridian Connections Inc.
Z91: 71 | AA91: Wasaga Distribution Inc.
Z92: 72 | AA92: Waterloo North Hydro Inc.
Z93: 73 | AA93: Welland Hydro-Electric System Corp.
Z94: 74 | AA94: Wellington North Power Inc.
Z95: 75 | AA95: West Coast Huron Energy Inc.
Z96: 76 | AA96: West Perth Power Inc.
Z97: 77 | AA97: Westario Power Inc.
Z98: 78 | AA98: Whitby Hydro Electric Corporation
Z99: 79 | AA99: Woodstock Hydro Services Inc.

Sheet 2. Table of Contents
D11: 1. Info | I11: 6. Taxes_PILs
D13: 2. Table of Contents | I13: 7. Cost_of_Capital
D15: 3. Data_Input_Sheet | I15: 8. Rev_Def_Suff
D17: 4. Rate_Base | I17: 9. Rev_Reqt
D19: 5. Utility Income | I19: 10. Tracking Sheet
A24: Notes:
A25: (1) | B25: Pale green cells represent inputs
A26: (2) | B26: Pale green boxes at the bottom of each page are for additional notes
A27: (3) | B27: Pale yellow cells represent drop-down lists
A28: (4) | B28: Please note that this model uses MACROS. Before starting, please ensure that macros have been enabled.
A29: (5) | B29: Completed versions of the Revenue Requirement Work Form are required to be filed in working Microsoft Excel format.

Sheet 3. Data_Input_Sheet
U1: =CONCATENATE('2. Table of Contents'!$F$6," ",'2. Table of Contents'!$G$6) -> 
B9: Data Input (1)
E12: Initial Application | G12: (2) | I12: =IF(ISBLANK(M12),"","Adjustments") ->  | O12: (6) | Q12: =IF(ISBLANK(M12),"","Adjustments") ->  | U12: Per Board Decision
B15: 1 | C15: Rate Base
C16: Gross Fixed Assets (average) | E16: 30620413.92 | M16: =IF(ISBLANK(E16),0,E16+I16) -> 30620413.92 | U16: =IF(ISBLANK(E16),"",E16+I16+Q16) -> 30620413.92
C17: Accumulated Depreciation (average) | E17: -20313620.19 | G17: (5) | M17: =IF(ISBLANK(E17),0,E17+I17) -> -20313620.19 | U17: =IF(ISBLANK(E17),"",E17+I17+Q17) -> -20313620.19
C18: Allowance for Working Capital:
C19: Controllable Expenses | E19: 3294963.922 | M19: =IF(ISBLANK(E19),0,E19+I19) -> 3294963.922 | U19: =IF(ISBLANK(E19),"",E19+I19+Q19) -> 3294963.922
C20: Cost of Power | E20: 24296056.24 | M20: =IF(ISBLANK(E20),0,E20+I20) -> 24296056.24 | U20: =IF(ISBLANK(E20),"",E20+I20+Q20) -> 24296056.24
C21: Working Capital Rate (%) | E21: 0.075 | G21: (9) | M21: =IF(ISBLANK(E21),0,E21) -> 0.075 | O21: (9) | U21: =IF(ISBLANK(M21),IF(ISBLANK(E21),0,E21),M21) -> 0.075 | W21: (9)
B23: 2 | C23: Utility Income
C24: Operating Revenues:
C25: Distribution Revenue at Current Rates | E25: 4125223.23 | I25: =IF(ISBLANK(M25),"",IF(ISBLANK(E25),"",M25-E25)) ->  | Q25: =IF(ISBLANK(U25),"",IF(ISBLANK(M25),"",U25-M25)) -> 
C26: Distribution Revenue at Proposed Rates | E26: 4804192.464 | I26: =IF(ISBLANK(M26),"",IF(ISBLANK(E26),"",M26-E26)) ->  | Q26: =IF(ISBLANK(U26),"",IF(ISBLANK(M26),"",U26-M26)) -> 
C27: Other Revenue:
C28: Specific Service Charges | E28: 67000 | I28: =IF(ISBLANK(M28),"",IF(ISBLANK(E28),"",M28-E28)) ->  | Q28: =IF(ISBLANK(U28),"",IF(ISBLANK(M28),"",U28-M28)) -> 
C29: Late Payment Charges | E29: 55000 | I29: =IF(ISBLANK(M29),"",IF(ISBLANK(E29),"",M29-E29)) ->  | Q29: =IF(ISBLANK(U29),"",IF(ISBLANK(M29),"",U29-M29)) -> 
C30: Other Distribution Revenue | E30: 97010 | I30: =IF(ISBLANK(M30),"",IF(ISBLANK(E30),"",M30-E30)) ->  | Q30: =IF(ISBLANK(U30),"",IF(ISBLANK(M30),"",U30-M30)) -> 
C31: Other Income and Deductions | E31: 65000 | I31: =IF(ISBLANK(M31),"",IF(ISBLANK(E31),"",M31-E31)) ->  | Q31: =IF(ISBLANK(U31),"",IF(ISBLANK(M31),"",U31-M31)) -> 
D33: Total Revenue Offsets | E33: 284010 | G33: (7) | I33: =IF(ISBLANK(M33),"",IF(ISBLANK(E33),"",M33-E33)) ->  | Q33: =IF(ISBLANK(U33),"",IF(ISBLANK(M33),"",U33-M33)) -> 
C35: Operating Expenses:
C36: OM+A Expenses | E36: 3294963.922 | M36: =IF(ISBLANK(E36),"",E36+I36) -> 3294963.922 | U36: =IF(ISBLANK(E36),"",E36+I36+Q36) -> 3294963.922
C37: Depreciation/Amortization | E37: 749620.39 | M37: =IF(ISBLANK(E37),"",E37+I37) -> 749620.39 | U37: =IF(ISBLANK(E37),"",E37+I37+Q37) -> 749620.39
C38: Property taxes | M38: =IF(ISBLANK(E38),"",E38+I38) ->  | U38: =IF(ISBLANK(E38),"",E38+I38+Q38) -> 
C39: Capital taxes | E39: =IF(ISBLANK(E48),"",E48) ->  | M39: =IF(ISBLANK(M48),"",M48) ->  | U39: =IF(ISBLANK(U48),"",U48) -> 
C40: Other expenses | M40: =IF(ISBLANK(E40),"",E40+I40) ->  | U40: =IF(ISBLANK(E40),"",E40+I40+Q40) -> 
B42: 3 | C42: Taxes/PILs
C43: Taxable Income:
D44: Adjustments required to arrive at taxable income | E44: -104641.9972 | G44: (3)
C45: Utility Income Taxes and Rates:
C46: Income taxes (not grossed up) | E46: 71690.01921
C47: Income taxes (grossed up) | E47: =IF(ISBLANK(E46),"",E46/(1-SUM(E49:E50))) -> 90136.52885 | M47: =IF(ISBLANK(M46),"",M46/(1-SUM(M49:M50))) ->  | U47: =IF(ISBLANK(U46),"",U46/(1-SUM(U49:U50))) -> 
C48: Capital Taxes
C49: Federal tax (%) | E49: 0.1263850822
C50: Provincial tax (%) | E50: 0.07826568339
C51: Income Tax Credits
B53: 4 | C53: Capitalization/Cost of Capital
C54: Capital Structure:
C55: Long-term debt Capitalization Ratio (%) | E55: 0.56
C56: Short-term debt Capitalization Ratio (%) | E56: 0.04 | G56: (8) | O56: (8) | W56: (8)
C57: Common Equity Capitalization Ratio (%) | E57: 0.4
C58: Prefered Shares Capitalization Ratio (%)
E59: =SUM(E55:E58) -> 1 | M59: =SUM(M55:M58) -> 0 | U59: =SUM(U55:U58) -> 0
E60: =IF(ISBLANK(E57),"",IF(SUM(E55:E58)=100%,"","Capital Structure must total 100%")) ->  | M60: =IF(ISBLANK(M57),"",IF(SUM(M55:M58)=100%,"","Capital Structure must total 100%")) ->  | U60: =IF(ISBLANK(U57),"",IF(SUM(U55:U58)=100%,"","Capital Structure must total 100%")) -> 
C61: Cost of Capital
C62: Long-term debt Cost Rate (%) | E62: 0.0725
C63: Short-term debt Cost Rate (%) | E63: 0.0165
C64: Common Equity Cost Rate (%) | E64: 0.0919
C65: Prefered Shares Cost Rate (%)
A68: Notes:
B69: General | C69: Data inputs are required on Sheets 3. Data from Sheet 3 will automatically complete calculations on sheets 4 through 9 (Rate Base through Revenue Requirement). Sheets 4 through 9 do not require any inputs except for notes that the Applicant may wish to enter to support the results. Pale green cells are available on sheets 4 through 9 to enter both footnotes beside key cells and the related text for the notes at the bottom of each sheet.
B70: (1) | C70: All inputs are in dollars ($) except where inputs are individually identified as percentages (%)
B71: (2) | C71: Data in column E is for Application as originally filed. For updated revenue requirement as a result of interrogatory responses, technical or settlement conferences, etc., use colimn M and Adjustments in column I
B72: (3) | C72: Net of addbacks and deductions to arrive at taxable income.
B73: (4) | C73: Average of Gross Fixed Assets at beginning and end of the Test Year
B74: (5) | C74: Average of Accumulated Depreciation at the beginning and end of the Test Year. Enter as a negative amount.
B75: (6) | C75: Select option from drop-down list by clicking on cell M10. This column allows for the application update reflecting the end of discovery or Argument-in-Chief. Also, the outcome of any Settlement Process can be reflected.
B76: (7) | C76: Input total revenue offsets for deriving the base revenue requirement from the service revenue requirement
B77: (8) | C77: 4.0% unless an Applicant has proposed or been approved for another amount.
B78: (9) | C78: The default Working Capital Allowance factor is 7.5% (of Cost of Power plus controllable expenses), per the letter issued by the Board on June 3, 2015. Alternatively, WCA factor based on lead-lag study or approved WCA factor for another distributor, with supporting rationale.

Sheet 4. Rate_Base
B6: Rate Base and Working Capital
D10: Rate Base
B11: Line No. | D11: Particulars | G11: Initial Application | K11: =IF(ISBLANK('3. Data_Input_Sheet'!M12),"",'3. Data_Input_Sheet'!I12) ->  | O11: =IF(ISBLANK('3. Data_Input_Sheet'!M12)," ",'3. Data_Input_Sheet'!M12) ->  | S11: =IF(ISBLANK('3. Data_Input_Sheet'!Q12),"",'3. Data_Input_Sheet'!Q12) ->  | W11: ='3. Data_Input_Sheet'!U12 -> Per Board Decision
B13: 1 | D13: Gross Fixed Assets (average) | E13: (3) | G13: ='3. Data_Input_Sheet'!E16 -> 30620413.92 | K13: ='3. Data_Input_Sheet'!I16 -> 0 | O13: =G13+K13 -> 30620413.92 | S13: ='3. Data_Input_Sheet'!Q16 -> 0 | W13: =G13+K13+S13 -> 30620413.92
B14: 2 | D14: Accumulated Depreciation (average) | E14: (3) | G14: ='3. Data_Input_Sheet'!E17 -> -20313620.19 | K14: ='3. Data_Input_Sheet'!I17 -> 0 | O14: =G14+K14 -> -20313620.19 | S14: ='3. Data_Input_Sheet'!Q17 -> 0 | W14: =G14+K14+S14 -> -20313620.19
B15: 3 | D15: Net Fixed Assets (average) | E15: (3) | G15: =SUM(G13:G14) -> 10306793.73 | K15: =SUM(K13:K14) -> 0 | O15: =SUM(O13:O14) -> 10306793.73 | S15: =SUM(S13:S14) -> 0 | W15: =SUM(W13:W14) -> 10306793.73
B17: 4 | D17: Allowance for Working Capital | E17: (1) | G17: =G30 -> 2069326.512 | K17: =K30 -> 0 | O17: =O30 -> 2069326.512 | S17: =S30 -> 0 | W17: =W30 -> 2069326.512
D18: Total Rate Base | G18: =G17+G15 -> 12376120.24 | K18: =K17+K15 -> 0 | O18: =O17+O15 -> 12376120.24 | S18: =S17+S15 -> 0 | W18: =W15+W17 -> 12376120.24
B19: 5
C20: (1) | D20: Allowance for Working Capital - Derivation
B24: 6 | D24: Controllable Expenses | G24: ='3. Data_Input_Sheet'!E19 -> 3294963.922 | K24: ='3. Data_Input_Sheet'!I19 -> 0 | O24: =G24+K24 -> 3294963.922 | S24: ='3. Data_Input_Sheet'!Q19 -> 0 | W24: =G24+K24+S24 -> 3294963.922
B25: 7 | D25: Cost of Power | G25: ='3. Data_Input_Sheet'!E20 -> 24296056.24 | K25: ='3. Data_Input_Sheet'!I20 -> 0 | O25: =G25+K25 -> 24296056.24 | S25: ='3. Data_Input_Sheet'!Q20 -> 0 | W25: =G25+K25+S25 -> 24296056.24
B26: 8 | D26: Working Capital Base | G26: =SUM(G24:G25) -> 27591020.16 | K26: =K24+K25 -> 0 | O26: =SUM(O24:O25) -> 27591020.16 | S26: =S24+S25 -> 0 | W26: =SUM(W24:W25) -> 27591020.16
B28: 9 | D28: Working Capital Rate % | E28: (2) | G28: ='3. Data_Input_Sheet'!E21 -> 0.075 | K28: =O28-G28 -> 0 | O28: ='3. Data_Input_Sheet'!M21 -> 0.075 | S28: =W28-O28 -> 0 | W28: ='3. Data_Input_Sheet'!U21 -> 0.075
B30: 10 | D30: Working Capital Allowance | G30: =G26*G28 -> 2069326.512 | K30: =O30-G30 -> 0 | O30: =O26*O28 -> 2069326.512 | S30: =W30-O30 -> 0 | W30: =W26*W28 -> 2069326.512
B33: Notes
B34: (2) | D34: Some Applicants may have a unique rate as a result of a lead-lag study. The default rate for 2016 cost of service applications is 7.5%, per the letter issued by the Board on June 3, 2015. Alternatively, a utility could conduct and file its own lead-lag study.
B35: (3) | D35: Average of opening and closing balances for the year.

Sheet 5. Utility Income
B11: Utility Income
B13: Line No. | D13: Particulars | F13: Initial Application | J13: =IF(N13="","","Adjustments") ->  | N13: =IF(ISBLANK('3. Data_Input_Sheet'!M12),"",'3. Data_Input_Sheet'!M12) ->  | R13: =IF(N13="","","Adjustments") ->  | V13: ='3. Data_Input_Sheet'!U12 -> Per Board Decision
D15: Operating Revenues:
B16: 1 | D16: Distribution Revenue (at Proposed Rates) | F16: ='3. Data_Input_Sheet'!E26 -> 4804192.464 | J16: =N16-F16 -> -4804192.464 | N16: ='3. Data_Input_Sheet'!M26 -> 0 | R16: =V16-N16 -> 0 | V16: =IF(ISBLANK('3. Data_Input_Sheet'!U26),'5. Utility Income'!N16,'3. Data_Input_Sheet'!U26) -> 0
B17: 2 | D17: Other Revenue | E17: (1) | F17: =F48 -> 284010 | J17: =N17-F17 -> -284010 | N17: =N48 -> 0 | R17: =V17-N17 -> 0 | V17: =V48 -> 0
F18: =SUM(F16:F17) -> 5088202.464 | J18: =SUM(J16:J17) -> -5088202.464 | N18: =SUM(N16:N17) -> 0 | R18: =SUM(R16:R17) -> 0 | V18: =SUM(V16:V17) -> 0
B19: 3 | D19: Total Operating Revenues
D21: Operating Expenses:
B22: 4 | D22: OM+A Expenses | F22: ='3. Data_Input_Sheet'!E36 -> 3294963.922 | J22: ='3. Data_Input_Sheet'!I36 -> 0 | N22: ='3. Data_Input_Sheet'!M36 -> 3294963.922 | R22: ='3. Data_Input_Sheet'!Q36 -> 0 | V22: ='3. Data_Input_Sheet'!U36 -> 3294963.922
B23: 5 | D23: Depreciation/Amortization | F23: ='3. Data_Input_Sheet'!E37 -> 749620.39 | J23: ='3. Data_Input_Sheet'!I37 -> 0 | N23: ='3. Data_Input_Sheet'!M37 -> 749620.39 | R23: ='3. Data_Input_Sheet'!Q37 -> 0 | V23: ='3. Data_Input_Sheet'!U37 -> 749620.39
B24: 6 | D24: Property taxes | F24: ='3. Data_Input_Sheet'!E38 -> 0 | J24: ='3. Data_Input_Sheet'!I38 -> 0 | N24: ='3. Data_Input_Sheet'!M38 ->  | R24: ='3. Data_Input_Sheet'!Q38 -> 0 | V24: ='3. Data_Input_Sheet'!U38 -> 
B25: 7 | D25: Capital taxes | F25: ='6. Taxes_PILs'!G25 -> 0 | J25: =N25-F25 -> 0 | N25: ='6. Taxes_PILs'!K25 -> 0 | R25: =V25-N25 -> 0 | V25: ='6. Taxes_PILs'!O25 -> 0
B26: 8 | D26: Other expense | F26: ='3. Data_Input_Sheet'!E40 -> 0 | J26: ='3. Data_Input_Sheet'!I40 -> 0 | N26: ='3. Data_Input_Sheet'!M40 ->  | R26: ='3. Data_Input_Sheet'!Q40 -> 0 | V26: ='3. Data_Input_Sheet'!U40 -> 
F27: =SUM(F22:F26) -> 4044584.312 | J27: =SUM(J22:J26) -> 0 | N27: =SUM(N22:N26) -> 4044584.312 | R27: =SUM(R22:R26) -> 0 | V27: =SUM(V22:V26) -> 4044584.312
B28: 9 | D28: Subtotal (lines 4 to 8)
B30: 10 | D30: Deemed Interest Expense | F30: ='7. Cost_of_Capital'!P19 -> 510638.7212 | J30: =N30-F30 -> -510638.7212 | N30: ='7. Cost_of_Capital'!P35 -> 0 | R30: =V30-N30 -> 0 | V30: ='7. Cost_of_Capital'!P51 -> 0
B32: 11 | D32: Total Expenses (lines 9 to 10) | F32: =F27+F30 -> 4555223.033 | J32: =J30+J27 -> -510638.7212 | N32: =N30+N27 -> 4044584.312 | R32: =R30+R27 -> 0 | V32: =V27+V30 -> 4044584.312
B34: 12 | D34: Utility income before income taxes | F34: =F18-(F32) -> 532979.4311 | J34: =J18-(J32) -> -4577563.743 | N34: =N18-(N32) -> -4044584.312 | R34: =R18-(R32) -> 0 | V34: =V18-(V32) -> -4044584.312
F35: ='6. Taxes_PILs'!G31 -> 90136.52885 | J35: =N35-F35 -> 0 | N35: ='6. Taxes_PILs'!K31 -> 90136.52885 | R35: =V35-N35 -> 0 | V35: =IF('6. Taxes_PILs'!O31=0,N35,'6. Taxes_PILs'!O31) -> 90136.52885
B36: 13 | D36: Income taxes (grossed-up)
F37: =F34-F35 -> 442842.9022 | J37: =J34-J35 -> -4577563.743 | N37: =N34-N35 -> -4134720.84 | R37: =R34-R35 -> 0 | V37: =V34-V35 -> -4134720.84
B38: 14 | D38: Utility net income
B42: Notes
B44: (1) | D44: Specific Service Charges | F44: ='3. Data_Input_Sheet'!E28 -> 67000 | J44: ='3. Data_Input_Sheet'!I28 ->  | N44: ='3. Data_Input_Sheet'!M28 -> 0 | R44: ='3. Data_Input_Sheet'!Q28 ->  | V44: =IF(ISBLANK('3. Data_Input_Sheet'!U28),N44,'3. Data_Input_Sheet'!U28) -> 0
D45: Late Payment Charges | F45: ='3. Data_Input_Sheet'!E29 -> 55000 | J45: ='3. Data_Input_Sheet'!I29 ->  | N45: ='3. Data_Input_Sheet'!M29 -> 0 | R45: ='3. Data_Input_Sheet'!Q29 ->  | V45: =IF(ISBLANK('3. Data_Input_Sheet'!U29),N45,'3. Data_Input_Sheet'!U29) -> 0
D46: Other Distribution Revenue | F46: ='3. Data_Input_Sheet'!E30 -> 97010 | J46: ='3. Data_Input_Sheet'!I30 ->  | N46: ='3. Data_Input_Sheet'!M30 -> 0 | R46: ='3. Data_Input_Sheet'!Q30 ->  | V46: =IF(ISBLANK('3. Data_Input_Sheet'!U30),N46,'3. Data_Input_Sheet'!U30) -> 0
D47: Other Income and Deductions | F47: ='3. Data_Input_Sheet'!E31 -> 65000 | J47: ='3. Data_Input_Sheet'!I31 ->  | N47: ='3. Data_Input_Sheet'!M31 -> 0 | R47: ='3. Data_Input_Sheet'!Q31 ->  | V47: =IF(ISBLANK('3. Data_Input_Sheet'!U31),N47,'3. Data_Input_Sheet'!U31) -> 0
F48: =SUM(F44:F47) -> 284010 | J48: =SUM(J44:J47) -> 0 | N48: =SUM(N44:N47) -> 0 | R48: =SUM(R44:R47) -> 0 | V48: =SUM(V44:V47) -> 0
D49: Total Revenue Offsets

Sheet 6. Taxes_PILs
B9: Taxes/PILs
B12: Line No. | D12: Particulars | G12: Application | K12: =IF(ISBLANK('3. Data_Input_Sheet'!M12),"",'3. Data_Input_Sheet'!M12) ->  | O12: ='3. Data_Input_Sheet'!U12 -> Per Board Decision
D14: Determination of Taxable Income
B16: 1 | D16: Utility net income before taxes | G16: ='7. Cost_of_Capital'!P22 -> 454946.1801 | K16: ='7. Cost_of_Capital'!P38 -> 0 | O16: ='7. Cost_of_Capital'!P54 -> 0
B18: 2 | D18: Adjustments required to arrive at taxable utility income | G18: ='3. Data_Input_Sheet'!E44 -> -104641.9972 | K18: ='3. Data_Input_Sheet'!M44 -> 0 | O18: =IF(ISBLANK('3. Data_Input_Sheet'!U44),G18,'3. Data_Input_Sheet'!U44) -> -104641.9972
B20: 3 | D20: Taxable income | G20: =G16+G18 -> 350304.1829 | K20: =K16+K18 -> 0 | O20: =O16+O18 -> -104641.9972
D22: Calculation of Utility income Taxes
B24: 4 | D24: Income taxes | G24: ='3. Data_Input_Sheet'!E46 -> 71690.01921 | K24: =IF(ISBLANK('3. Data_Input_Sheet'!M46),'6. Taxes_PILs'!G24,'3. Data_Input_Sheet'!M46) -> 71690.01921 | O24: =IF(ISBLANK('3. Data_Input_Sheet'!U46),'6. Taxes_PILs'!K24,'3. Data_Input_Sheet'!U46) -> 71690.01921
B25: 5 | D25: Capital taxes | G25: ='3. Data_Input_Sheet'!E48 -> 0 | K25: =IF(ISBLANK('3. Data_Input_Sheet'!M48),'6. Taxes_PILs'!G25,'3. Data_Input_Sheet'!M48) -> 0 | O25: =IF(ISBLANK('3. Data_Input_Sheet'!U48),'6. Taxes_PILs'!K25,'3. Data_Input_Sheet'!U48) -> 0
G26: =SUM(G24:G25) -> 71690.01921 | K26: =SUM(K24:K25) -> 71690.01921 | O26: =SUM(O24:O25) -> 71690.01921
B27: 6 | D27: Total taxes
B29: 7 | D29: Gross-up of Income Taxes | G29: =(G24/(1-G41))-G24 -> 18446.50963 | K29: =(K24/(1-K41))-K24 -> 18446.50963 | O29: =(O24/(1-O41))-O24 -> 18446.50963
B31: 8 | D31: Grossed-up Income Taxes | G31: =G24+G29 -> 90136.52885 | K31: =K24+K29 -> 90136.52885 | O31: =O24+O29 -> 90136.52885
B33: 9 | D33: PILs / tax Allowance (Grossed-up Income taxes + Capital taxes) | G33: =G26+G29 -> 90136.52885 | K33: =K29+K26 -> 90136.52885 | O33: =O29+O26 -> 90136.52885
B35: 10 | D35: Other tax Credits | G35: ='3. Data_Input_Sheet'!E51 -> 0 | K35: =IF(ISBLANK('3. Data_Input_Sheet'!M51),G35,'3. Data_Input_Sheet'!M51) -> 0 | O35: =IF(ISBLANK('3. Data_Input_Sheet'!U51),K35,'3. Data_Input_Sheet'!U51) -> 0
D37: Tax Rates
B39: 11 | D39: Federal tax (%) | G39: ='3. Data_Input_Sheet'!E49 -> 0.1263850822 | K39: =IF(ISBLANK('3. Data_Input_Sheet'!M49),G39,'3. Data_Input_Sheet'!M49) -> 0.1263850822 | O39: =IF(ISBLANK('3. Data_Input_Sheet'!U49),K39,'3. Data_Input_Sheet'!U49) -> 0.1263850822
B40: 12 | D40: Provincial tax (%) | G40: ='3. Data_Input_Sheet'!E50 -> 0.07826568339 | K40: =IF(ISBLANK('3. Data_Input_Sheet'!M50),G40,'3. Data_Input_Sheet'!M50) -> 0.07826568339 | O40: =IF(ISBLANK('3. Data_Input_Sheet'!U50),K40,'3. Data_Input_Sheet'!U50) -> 0.07826568339
B41: 13 | D41: Total tax rate (%) | G41: =G39+G40 -> 0.2046507656 | K41: =K39+K40 -> 0.2046507656 | O41: =O39+O40 -> 0.2046507656
B44: Notes
D45: Capital Taxes not applicable after July 1, 2010 (i.e. for 2011 and later test years)

Sheet 7. Cost_of_Capital
B5: Capitalization/Cost of Capital
B11: Line No. | D11: Particulars | F11: Capitalization Ratio | L11: Cost Rate | P11: Return
F13: Initial Application
F15: (%) | J15: ($) | L15: (%) | P15: ($)
D16: Debt
B17: 1 | D17: Long-term Debt | F17: ='3. Data_Input_Sheet'!E55 -> 0.56 | J17: =$J$26*F17 -> 6930627.336 | L17: ='3. Data_Input_Sheet'!E62 -> 0.0725 | P17: =L17*J17 -> 502470.4818
B18: 2 | D18: Short-term Debt | F18: ='3. Data_Input_Sheet'!E56 -> 0.04 | J18: =$J$26*F18 -> 495044.8097 | L18: ='3. Data_Input_Sheet'!E63 -> 0.0165 | P18: =L18*J18 -> 8168.23936
B19: 3 | D19: Total Debt | F19: =SUM(F17:F18) -> 0.6 | J19: =SUM(J17:J18) -> 7425672.145 | L19: =IF(F19=0,0,SUMPRODUCT(F17:F18,L17:L18)/F19) -> 0.06876666667 | P19: =SUM(P17:P18) -> 510638.7212
D21: Equity
B22: 4 | D22: Common Equity | F22: ='3. Data_Input_Sheet'!E57 -> 0.4 | J22: =$J$26*F22 -> 4950448.097 | L22: ='3. Data_Input_Sheet'!E64 -> 0.0919 | P22: =L22*J22 -> 454946.1801
B23: 5 | D23: Preferred Shares | F23: ='3. Data_Input_Sheet'!E58 -> 0 | J23: =$J$26*F23 -> 0 | L23: ='3. Data_Input_Sheet'!E65 -> 0 | P23: =L23*J23 -> 0
B24: 6 | D24: Total Equity | F24: =SUM(F22:F23) -> 0.4 | J24: =SUM(J22:J23) -> 4950448.097 | L24: =IF(F24=0,0,SUMPRODUCT(F22:F23,L22:L23)/F24) -> 0.0919 | P24: =SUM(P22:P23) -> 454946.1801
B26: 7 | D26: Total | F26: =SUM(F19,F24) -> 1 | J26: ='4. Rate_Base'!G18 -> 12376120.24 | L26: =(L19*F19)+(L24*F24) -> 0.07802 | P26: =P19+P24 -> 965584.9013
F29: ='1. Info'!AC1 -> 
F31: (%) | J31: ($) | L31: (%) | P31: ($)
D32: Debt
B33: 1 | D33: Long-term Debt | F33: ='3. Data_Input_Sheet'!M55 -> 0 | J33: =$J$42*F33 -> 0 | L33: ='3. Data_Input_Sheet'!M62 -> 0 | P33: =L33*J33 -> 0
B34: 2 | D34: Short-term Debt | F34: ='3. Data_Input_Sheet'!M56 -> 0 | J34: =$J$42*F34 -> 0 | L34: ='3. Data_Input_Sheet'!M63 -> 0 | P34: =L34*J34 -> 0
B35: 3 | D35: Total Debt | F35: =SUM(F33:F34) -> 0 | J35: =SUM(J33:J34) -> 0 | L35: =IF(F35=0,0,SUMPRODUCT(F33:F34,L33:L34)/F35) -> 0 | P35: =SUM(P33:P34) -> 0
D37: Equity
B38: 4 | D38: Common Equity | F38: ='3. Data_Input_Sheet'!M57 -> 0 | J38: =$J$42*F38 -> 0 | L38: ='3. Data_Input_Sheet'!M64 -> 0 | P38: =L38*J38 -> 0
B39: 5 | D39: Preferred Shares | F39: ='3. Data_Input_Sheet'!M58 -> 0 | J39: =$J$42*F39 -> 0 | L39: ='3. Data_Input_Sheet'!M65 -> 0 | P39: =L39*J39 -> 0
B40: 6 | D40: Total Equity | F40: =SUM(F38:F39) -> 0 | J40: =SUM(J38:J39) -> 0 | L40: =IF(F40=0,0,SUMPRODUCT(F38:F39,L38:L39)/F40) -> 0 | P40: =SUM(P38:P39) -> 0
B42: 7 | D42: Total | F42: =F35+F40 -> 0 | J42: ='4. Rate_Base'!O18 -> 12376120.24 | L42: =(L35*F35)+(L40*F40) -> 0 | P42: =P35+P40 -> 0
F45: Per Board Decision
F47: (%) | J47: ($) | L47: (%) | P47: ($)
D48: Debt
B49: 8 | D49: Long-term Debt | F49: =IF(ISBLANK('3. Data_Input_Sheet'!U55),F33,'3. Data_Input_Sheet'!U55) -> 0 | J49: =$J$58*F49 -> 0 | L49: =IF(ISBLANK('3. Data_Input_Sheet'!U62),L17,'3. Data_Input_Sheet'!U62) -> 0.0725 | P49: =L49*J49 -> 0
B50: 9 | D50: Short-term Debt | F50: =IF(ISBLANK('3. Data_Input_Sheet'!U56),F34,'3. Data_Input_Sheet'!U56) -> 0 | J50: =$J$58*F50 -> 0 | L50: =IF(ISBLANK('3. Data_Input_Sheet'!U63),L18,'3. Data_Input_Sheet'!U63) -> 0.0165 | P50: =L50*J50 -> 0
B51: 10 | D51: Total Debt | F51: =SUM(F49:F50) -> 0 | J51: =SUM(J49:J50) -> 0 | L51: =IF(F51=0,0,SUMPRODUCT(F49:F50,L49:L50)/F51) -> 0 | P51: =SUM(P49:P50) -> 0
D53: Equity
B54: 11 | D54: Common Equity | F54: =IF(ISBLANK('3. Data_Input_Sheet'!U57),F38,'3. Data_Input_Sheet'!U57) -> 0 | J54: =$J$58*F54 -> 0 | L54: =IF(ISBLANK('3. Data_Input_Sheet'!U64),L22,'3. Data_Input_Sheet'!U64) -> 0.0919 | P54: =L54*J54 -> 0
B55: 12 | D55: Preferred Shares | F55: =IF(ISBLANK('3. Data_Input_Sheet'!U58),F39,'3. Data_Input_Sheet'!U58) -> 0 | J55: =$J$58*F55 -> 0 | L55: =IF(ISBLANK('3. Data_Input_Sheet'!U65),L23,'3. Data_Input_Sheet'!U65) -> 0 | P55: =L55*J55 -> 0
B56: 13 | D56: Total Equity | F56: =SUM(F54:F55) -> 0 | J56: =SUM(J54:J55) -> 0 | L56: =IF(F56=0,0,SUMPRODUCT(F54:F55,L54:L55)/F56) -> 0 | P56: =SUM(P54:P55) -> 0
B58: 14 | D58: Total | F58: =F51+F56 -> 0 | J58: ='4. Rate_Base'!W18 -> 12376120.24 | L58: =(L51*F51)+(L56*F56) -> 0 | P58: =P51+P56 -> 0
B61: Notes
B62: (1) | D62: ='3. Data_Input_Sheet'!C71 -> Data in column E is for Application as originally filed. For updated revenue requirement as a result of interrogatory responses, technical or settlement conferences, etc., use colimn M and Adjustments in column I

Sheet 8. Rev_Def_Suff
P1: =CONCATENATE('2. Table of Contents'!$F$6," ",'2. Table of Contents'!$G$6) -> 
B10: Revenue Deficiency/Sufficiency
F13: Initial Application | J13: =IF(ISBLANK('3. Data_Input_Sheet'!M12),"",'3. Data_Input_Sheet'!M12) ->  | N13: ='3. Data_Input_Sheet'!U12 -> Per Board Decision
B15: Line No. | D15: Particulars | F15: At Current Approved Rates | H15: At Proposed Rates | J15: At Current Approved Rates | L15: At Proposed Rates | N15: At Current Approved Rates | P15: At Proposed Rates
B19: 1 | D19: Revenue Deficiency from Below | H19: =F52 -> 691072.5112 | L19: =J52 -> -107564.2794 | P19: =N52 -> 4044584.312
B20: 2 | D20: Distribution Revenue | F20: ='3. Data_Input_Sheet'!E25 -> 4125223.23 | H20: ='3. Data_Input_Sheet'!E26-H19 -> 4113119.953 | J20: =IF(ISBLANK('3. Data_Input_Sheet'!M25),'3. Data_Input_Sheet'!E25,'3. Data_Input_Sheet'!M25) -> 4125223.23 | L20: =IF(ISBLANK('3. Data_Input_Sheet'!M26),'3. Data_Input_Sheet'!E26-L19,'3. Data_Input_Sheet'!M26-L19) -> 4911756.743 | N20: =IF(ISBLANK('3. Data_Input_Sheet'!U25),'3. Data_Input_Sheet'!M25,'3. Data_Input_Sheet'!U25) -> 0 | P20: =IF(ISBLANK('3. Data_Input_Sheet'!U26),'3. Data_Input_Sheet'!M26-P19,'3. Data_Input_Sheet'!U26-P19) -> -4044584.312
B21: 3 | D21: Other Operating Revenue Offsets - net | F21: ='5. Utility Income'!F48 -> 284010 | H21: ='5. Utility Income'!F48 -> 284010 | J21: ='5. Utility Income'!N48 -> 0 | L21: =J21 -> 0 | N21: ='5. Utility Income'!V48 -> 0 | P21: ='5. Utility Income'!V48 -> 0
B22: 4 | D22: Total Revenue | F22: =SUM(F20:F21) -> 4409233.23 | H22: =SUM(H19:H21) -> 5088202.464 | J22: =SUM(J20:J21) -> 4125223.23 | L22: =SUM(L19:L21) -> 4804192.464 | N22: =SUM(N20:N21) -> 0 | P22: =SUM(P19:P21) -> 0
B24: 5 | D24: Operating Expenses | F24: ='5. Utility Income'!F27 -> 4044584.312 | H24: ='5. Utility Income'!F27 -> 4044584.312 | J24: ='5. Utility Income'!N27 -> 4044584.312 | L24: ='5. Utility Income'!N27 -> 4044584.312 | N24: ='5. Utility Income'!V27 -> 4044584.312 | P24: ='5. Utility Income'!V27 -> 4044584.312
B25: 6 | D25: Deemed Interest Expense | F25: ='5. Utility Income'!F30 -> 510638.7212 | H25: ='5. Utility Income'!F30 -> 510638.7212 | J25: ='5. Utility Income'!N30 -> 0 | L25: ='5. Utility Income'!N30 -> 0 | N25: ='5. Utility Income'!V30 -> 0 | P25: ='5. Utility Income'!V30 -> 0
B26: 8 | D26: Total Cost and Expenses | F26: =SUM(F24:F25) -> 4555223.033 | H26: =SUM(H24:H25) -> 4555223.033 | J26: =SUM(J24:J25) -> 4044584.312 | L26: =SUM(L24:L25) -> 4044584.312 | N26: =SUM(N24:N25) -> 4044584.312 | P26: =SUM(P24:P25) -> 4044584.312
B28: 9 | D28: Utility Income Before Income Taxes | F28: =F22-F26 -> -145989.8023 | H28: =H22-H26 -> 532979.4311 | J28: =J22-J26 -> 80638.91892 | L28: =L22-L26 -> 759608.1523 | N28: =N22-N26 -> -4044584.312 | P28: =P22-P26 -> -4044584.312
B30: 10 | D30: Tax Adjustments to Accounting Income per 2013 PILs model | F30: ='3. Data_Input_Sheet'!E44 -> -104641.9972 | H30: ='3. Data_Input_Sheet'!E44 -> -104641.9972 | J30: =IF(ISBLANK('3. Data_Input_Sheet'!M44),'3. Data_Input_Sheet'!E44,'3. Data_Input_Sheet'!M44) -> -104641.9972 | L30: =IF(ISBLANK('3. Data_Input_Sheet'!M44),'3. Data_Input_Sheet'!E44,'3. Data_Input_Sheet'!M44) -> -104641.9972 | N30: =IF(ISBLANK('3. Data_Input_Sheet'!U44),'3. Data_Input_Sheet'!M44,'3. Data_Input_Sheet'!U44) -> 0 | P30: =IF(ISBLANK('3. Data_Input_Sheet'!U44),'3. Data_Input_Sheet'!M44,'3. Data_Input_Sheet'!U44) -> 0
B31: 11 | D31: Taxable Income | F31: =SUM(F28:F30) -> -250631.7995 | H31: =SUM(H28:H30) -> 428337.4339 | J31: =SUM(J28+J30) -> -24003.07827 | L31: =L28+L30 -> 654966.1551 | N31: =SUM(N28+N30) -> -4044584.312 | P31: =P28+P30 -> -4044584.312
B33: 12 | D33: Income Tax Rate | F33: ='6. Taxes_PILs'!G41 -> 0.2046507656 | H33: ='6. Taxes_PILs'!G41 -> 0.2046507656 | J33: ='6. Taxes_PILs'!K41 -> 0.2046507656 | L33: ='6. Taxes_PILs'!K41 -> 0.2046507656 | N33: ='6. Taxes_PILs'!O41 -> 0.2046507656 | P33: ='6. Taxes_PILs'!O41 -> 0.2046507656
B34: 13 | D34: Income Tax on Taxable Income | F34: =F31*F33 -> -51291.98964 | H34: =H31*H33 -> 87659.58376 | J34: =J31*J33 -> -4912.248344 | L34: =L31*L33 -> 134039.3251 | N34: =N31*N33 -> -827727.2758 | P34: =P31*P33 -> -827727.2758
B35: 14 | D35: Income Tax Credits | F35: ='3. Data_Input_Sheet'!E51 -> 0 | H35: ='3. Data_Input_Sheet'!E51 -> 0 | J35: =IF(ISBLANK('3. Data_Input_Sheet'!M51),'3. Data_Input_Sheet'!E51,'3. Data_Input_Sheet'!M51) -> 0 | L35: =IF(ISBLANK('3. Data_Input_Sheet'!M51),'3. Data_Input_Sheet'!E51,'3. Data_Input_Sheet'!M51) -> 0 | N35: =IF(ISBLANK('3. Data_Input_Sheet'!U51),'3. Data_Input_Sheet'!M51,'3. Data_Input_Sheet'!U51) -> 0 | P35: =IF(ISBLANK('3. Data_Input_Sheet'!U51),'3. Data_Input_Sheet'!M51,'3. Data_Input_Sheet'!U51) -> 0
B36: 15 | D36: Utility Net Income | F36: =F28-SUM(F34:F35) -> -94697.81263 | H36: ='5. Utility Income'!F37 -> 442842.9022 | J36: =J28-SUM(J34:J35) -> 85551.16727 | L36: ='5. Utility Income'!N37 -> -4134720.84 | N36: =N28-SUM(N34:N35) -> -3216857.036 | P36: ='5. Utility Income'!V37 -> -4134720.84
B38: 16 | D38: Utility Rate Base | F38: ='4. Rate_Base'!G18 -> 12376120.24 | H38: ='4. Rate_Base'!G18 -> 12376120.24 | J38: ='4. Rate_Base'!O18 -> 12376120.24 | L38: ='4. Rate_Base'!O18 -> 12376120.24 | N38: ='4. Rate_Base'!W18 -> 12376120.24 | P38: ='4. Rate_Base'!W18 -> 12376120.24
B40: 17 | D40: Deemed Equity Portion of Rate Base | F40: ='7. Cost_of_Capital'!J24 -> 4950448.097 | H40: =F40 -> 4950448.097 | J40: ='7. Cost_of_Capital'!J40 -> 0 | L40: =J40 -> 0 | N40: ='7. Cost_of_Capital'!J56 -> 0 | P40: =N40 -> 0
B42: 18 | D42: Income/(Equity Portion of Rate Base) | F42: =IF(F40=0,0,F36/F40) -> -0.01912913958 | H42: =IF(H40=0,0,H36/H40) -> 0.08945511468 | J42: =IF(J40=0,0,J36/J40) -> 0 | L42: =IF(L40=0,0,L36/L40) -> 0 | N42: =IF(N40=0,0,N36/N40) -> 0 | P42: =IF(P40=0,0,P36/P40) -> 0
B43: 19 | D43: Target Return - Equity on Rate Base | F43: ='7. Cost_of_Capital'!L24 -> 0.0919 | H43: ='7. Cost_of_Capital'!L24 -> 0.0919 | J43: ='7. Cost_of_Capital'!L40 -> 0 | L43: ='7. Cost_of_Capital'!L40 -> 0 | N43: ='7. Cost_of_Capital'!L56 -> 0 | P43: ='7. Cost_of_Capital'!L56 -> 0
B44: 20 | D44: Deficiency/Sufficiency in Return on Equity | F44: =F42-F43 -> -0.1110291396 | H44: =H42-H43 -> -0.00244488532 | J44: =J42-J43 -> 0 | L44: =L42-L43 -> 0 | N44: =N42-N43 -> 0 | P44: =P42-P43 -> 0
B46: 21 | D46: Indicated Rate of Return | F46: =IF(F38=0,0,(F36+F25)/F38) -> 0.03360834417 | H46: =IF(H38=0,0,(H36+H25)/H38) -> 0.07704204587 | J46: =IF(J38=0,0,(J36+J25)/J38) -> 0.006912599877 | L46: =IF(L40=0,0,(L36+L25)/L38) -> 0 | N46: =IF(N38=0,0,(N36+N25)/N38) -> -0.2599245137 | P46: =IF(P40=0,0,(P36+P25)/P38) -> 0
B47: 22 | D47: Requested Rate of Return on Rate Base | F47: ='7. Cost_of_Capital'!L26 -> 0.07802 | H47: ='7. Cost_of_Capital'!L26 -> 0.07802 | J47: ='7. Cost_of_Capital'!L42 -> 0 | L47: ='7. Cost_of_Capital'!L42 -> 0 | N47: ='7. Cost_of_Capital'!L58 -> 0 | P47: ='7. Cost_of_Capital'!L58 -> 0
B48: 23 | D48: Deficiency/Sufficiency in Rate of Return | F48: =F46-F47 -> -0.04441165583 | H48: =H46-H47 -> -0.0009779541281 | J48: =J46-J47 -> 0.006912599877 | L48: =L46-L47 -> 0 | N48: =N46-N47 -> -0.2599245137 | P48: =P46-P47 -> 0
B50: 24 | D50: Target Return on Equity | F50: =H50 -> 454946.1801 | H50: ='7. Cost_of_Capital'!P24 -> 454946.1801 | J50: =L50 -> 0 | L50: ='7. Cost_of_Capital'!P40 -> 0 | N50: =P50 -> 0 | P50: ='7. Cost_of_Capital'!P56 -> 0
B51: 25 | D51: Revenue Deficiency/(Sufficiency) | F51: =F50-F36 -> 549643.9927 | H51: =H38*H48 -> -12103.27788 | J51: =J50-J36 -> -85551.16727 | L51: =L38*L48 -> 0 | N51: =N50-N36 -> 3216857.036 | P51: =P38*P48 -> 0
B52: 26 | D52: Gross Revenue Deficiency/(Sufficiency) | F52: =F51/(1-F33) -> 691072.5112 | G52: (1) | J52: =J51/(1-J33) -> -107564.2794 | K52: (1) | N52: =N51/(1-N33) -> 4044584.312 | O52: (1)
B55: Notes:
B56: (1) | D56: Revenue Deficiency/Sufficiency divided by (1 - Tax Rate)

Sheet 9. Rev_Reqt
B11: Revenue Requirement
B13: Line No. | D13: Particulars | F13: Application | J13: =IF(ISBLANK('3. Data_Input_Sheet'!M12),"",'3. Data_Input_Sheet'!M12) ->  | N13: ='3. Data_Input_Sheet'!U12 -> Per Board Decision
B15: 1 | D15: OM&A Expenses | F15: ='5. Utility Income'!F22 -> 3294963.922 | J15: ='5. Utility Income'!N22 -> 3294963.922 | N15: ='5. Utility Income'!V22 -> 3294963.922
B16: 2 | D16: Amortization/Depreciation | F16: ='5. Utility Income'!F23 -> 749620.39 | J16: ='5. Utility Income'!N23 -> 749620.39 | N16: ='5. Utility Income'!V23 -> 749620.39
B17: 3 | D17: Property Taxes | F17: ='5. Utility Income'!F24 -> 0 | J17: ='5. Utility Income'!N24 ->  | N17: ='5. Utility Income'!V24 -> 
B18: 4 | D18: Capital Taxes | F18: ='6. Taxes_PILs'!G25 -> 0 | J18: ='6. Taxes_PILs'!K25 -> 0 | N18: ='6. Taxes_PILs'!O25 -> 0
B19: 5 | D19: Income Taxes (Grossed up) | F19: ='6. Taxes_PILs'!G33-F18 -> 90136.52885 | J19: ='6. Taxes_PILs'!K33-J18 -> 90136.52885 | N19: ='6. Taxes_PILs'!O33-N18 -> 90136.52885
B20: 6 | D20: Other Expenses | F20: ='5. Utility Income'!F26 -> 0 | J20: ='5. Utility Income'!N26 ->  | N20: ='5. Utility Income'!V26 -> 
B21: 7 | D21: Return
D22: Deemed Interest Expense | F22: ='8. Rev_Def_Suff'!F25 -> 510638.7212 | J22: ='8. Rev_Def_Suff'!L25 -> 0 | N22: ='8. Rev_Def_Suff'!P25 -> 0
D23: Return on Deemed Equity | F23: ='8. Rev_Def_Suff'!F50 -> 454946.1801 | J23: ='8. Rev_Def_Suff'!L50 -> 0 | N23: ='8. Rev_Def_Suff'!P50 -> 0
B25: 8 | D25: Service Revenue Requirement (before Revenues) | F25: =SUM(F15:F23) -> 5100305.742 | J25: =SUM(J15:J23) -> 4134720.84 | N25: =SUM(N15:O23) -> 4134720.84
B27: 9 | D27: Revenue Offsets | F27: ='3. Data_Input_Sheet'!E33 -> 284010 | J27: ='3. Data_Input_Sheet'!M33 -> 0 | N27: ='3. Data_Input_Sheet'!U33 -> 0
B28: 10 | D28: Base Revenue Requirement | F28: =F25-F27 -> 4816295.742 | J28: =J25-J27 -> 4134720.84 | N28: =N25-N27 -> 4134720.84
D29: (excluding Tranformer Owership Allowance credit adjustment)
B31: 11 | D31: Distribution revenue | F31: ='5. Utility Income'!F16 -> 4804192.464 | J31: ='5. Utility Income'!N16 -> 0 | N31: ='5. Utility Income'!V16 -> 0
B32: 12 | D32: Other revenue | F32: ='5. Utility Income'!F17 -> 284010 | J32: ='5. Utility Income'!N17 -> 0 | N32: ='5. Utility Income'!V17 -> 0
F33: =SUM(F31:F32) -> 5088202.464 | J33: =SUM(J31:J32) -> 0 | N33: =SUM(N31:N32) -> 0
B34: 13 | D34: Total revenue
F35: =F33-F25 -> -12103.27788 | J35: =J33-J25 -> -4134720.84 | N35: =N33-N25 -> -4134720.84
B36: 14 | D36: Difference (Total Revenue Less Distribution Revenue Requirement before Revenues) | H36: (1) | L36: (1) | Q36: (1)
B38: Notes
B39: (1) | D39: Line 11 - Line 8

Sheet 10. Tracking_Sheet
B14: Tracking Form
B15: The last row shown is the most current estimate of the cost of service data reflecting the original application and any updates provided by the applicant distributor (for updated evidence, responses to interrogatories, undertakings, etc.) Please ensure a Reference (Column B) and/or Item Description (Column C) is entered. Please note that unused rows will automatically be hidden and the PRINT AREA set when the PRINT BUTTON on Sheet 1 is activated. (1) Short reference to evidence material (interrogatory response, undertaking, exhibit number, Board Decision, Code, Guideline, Report of the Board, etc.) (2) Short description of change, issue, etc. 60 Tracking Rows have been provided below. If you require more, please contact Industry Relations @ IndustryRelations@ontarioenergyboard.ca.
B16: Summary of Proposed Changes
D18: Cost of Capital | F18: Rate Base and Capital Expenditures | I18: Operating Expenses | L18: Revenue Requirement
B19: Reference (1) | C19: Item / Description (2) | D19: Regulated Return on Capital | E19: Regulated Rate of Return | F19: Rate Base | G19: Working Capital | H19: Working Capital Allowance ($) | I19: Amortization / Depreciation | J19: Taxes/PILs | K19: OM&A | L19: Service Revenue Requirement | M19: Other Revenues | N19: Base Revenue Requirement | O19: Grossed up Revenue Deficiency / Sufficiency
C20: Original Application | D20: 953246.1523 | E20: 0.077348 | F20: 12324121.53 | G20: 26897704.03 | H20: 2017327.802 | I20: 749620.39 | J20: 90372.05148 | K20: 3294963.922 | L20: 5088202.515 | M20: 284010 | N20: 4804192.515 | O20: 674940.042
A22: 1 | C22: Update to the LF and Cost of Power (WMS/RPPP) | D22: 957268.1485 | E22: 0.077348 | F22: 12376120.24 | G22: 27591020.16 | H22: 2069326.512 | I22: 749620.39 | J22: 90372.05148 | K22: 3294963.922 | L22: 5092224.512 | M22: 284010 | N22: 4808214.512 | O22: 679439.1129 | Q22: =IF(AND(ISBLANK(B22), ISBLANK(C22)), "X", "") -> 
C23: Change | D23: =D20-D22 -> -4021.99623 | E23: =E20-E22 -> 0 | F23: =F20-F22 -> -51998.71012 | G23: =G20-G22 -> -693316.1349 | H23: =H20-H22 -> -51998.71012 | I23: =I20-I22 -> 0 | J23: =J20-J22 -> 0 | K23: =K20-K22 -> 0 | L23: =L20-L22 -> -4021.99623 | M23: =M20-M22 -> 0 | N23: =N20-N22 -> -4021.99623 | O23: =O20-O22 -> -4499.070947 | P23: =P20-P22 -> 0 | Q23: =Q20-Q22 ->  | R23: =R20-R22 -> 0
A25: 2 | C25: Update to Cost of Capital | D25: 965584.9013 | E25: 0.07802 | F25: 12376120.24 | G25: 27591020.16 | H25: 2069326.512 | I25: 749620.39 | J25: 90372.05148 | K25: 3294963.922 | L25: 5100541.264 | M25: 284010 | N25: 4816531.264 | O25: 690411.2129 | Q25: =IF(AND(ISBLANK(B25), ISBLANK(C25)), "X", "") -> 
C26: Change | D26: =IF(D25="","",D25-D22) -> 8316.752803 | E26: 0.000672 | F26: 0 | G26: 0 | H26: 0 | I26: 0 | J26: 0 | K26: 0 | L26: 8316.752803 | M26: 0 | N26: 8316.752803 | O26: 10972.09996
A28: 3 | C28: Update to PILs | D28: ='7. Cost_of_Capital'!$P$26 -> 965584.9013 | E28: ='7. Cost_of_Capital'!$L$26 -> 0.07802 | F28: ='4. Rate_Base'!$G$18 -> 12376120.24 | G28: ='4. Rate_Base'!$G$26 -> 27591020.16 | H28: ='4. Rate_Base'!$G$30 -> 2069326.512 | I28: ='9. Rev_Reqt'!$F$16 -> 749620.39 | J28: ='9. Rev_Reqt'!$F$19 -> 90136.52885 | K28: ='9. Rev_Reqt'!$F$15 -> 3294963.922 | L28: ='9. Rev_Reqt'!$F$25 -> 5100305.742 | M28: ='9. Rev_Reqt'!$F$32 -> 284010 | N28: ='9. Rev_Reqt'!$F$28 -> 4816295.742 | O28: ='8. Rev_Def_Suff'!$F$52 -> 691072.5112 | Q28: =IF(AND(ISBLANK(B28), ISBLANK(C28)), "X", "") -> 
C29: Change | D29: =IF(D28="","",D28-D25) -> 0 | E29: 0 | F29: 0 | G29: 0 | H29: 0 | I29: 0 | J29: -235.522636 | K29: 0 | L29: -235.522636 | M29: 0 | N29: -235.522636 | O29: 661.2983437
A31: 4 | Q31: =IF(AND(ISBLANK(B31), ISBLANK(C31)), "X", "") -> X
C32: Change | D32: =IF(D31="","",D31-D28) ->  | S32: Total Change
S33: To Base RR | U33: =N23+N26+N29 -> 4059.233937
A34: 5 | Q34: =IF(AND(ISBLANK(B34), ISBLANK(C34)), "X", "") -> X
C35: Change | D35: =IF(D34="","",D34-D31) -> 
A37: 6 | Q37: =IF(AND(ISBLANK(B37), ISBLANK(C37)), "X", "") -> X
C38: Change | D38: =IF(D37="","",D37-D34) -> 
A40: 7 | Q40: =IF(AND(ISBLANK(B40), ISBLANK(C40)), "X", "") -> X
C41: Change | D41: =IF(D40="","",D40-D37) -> 
A43: 8 | Q43: =IF(AND(ISBLANK(B43), ISBLANK(C43)), "X", "") -> X
C44: Change | D44: =IF(D43="","",D43-D40) -> 
A46: 9 | Q46: =IF(AND(ISBLANK(B46), ISBLANK(C46)), "X", "") -> X
C47: Change | D47: =IF(D46="","",D46-D43) -> 
A49: 10 | Q49: =IF(AND(ISBLANK(B49), ISBLANK(C49)), "X", "") -> X
C50: Change | D50: =IF(D49="","",D49-D46) -> 
A52: 11 | Q52: =IF(AND(ISBLANK(B52), ISBLANK(C52)), "X", "") -> X
C53: Change | D53: =IF(D52="","",D52-D49) -> 
A55: 12 | Q55: =IF(AND(ISBLANK(B55), ISBLANK(C55)), "X", "") -> X
C56: Change | D56: =IF(D55="","",D55-D52) -> 
A58: 13 | Q58: =IF(AND(ISBLANK(B58), ISBLANK(C58)), "X", "") -> X
C59: Change | D59: =IF(D58="","",D58-D55) -> 
A61: 14 | Q61: =IF(AND(ISBLANK(B61), ISBLANK(C61)), "X", "") -> X
C62: Change | D62: =IF(D61="","",D61-D58) -> 
A64: 15 | Q64: =IF(AND(ISBLANK(B64), ISBLANK(C64)), "X", "") -> X
C65: Change | D65: =IF(D64="","",D64-D61) -> 
A67: 16 | Q67: =IF(AND(ISBLANK(B67), ISBLANK(C67)), "X", "") -> X
C68: Change | D68: =IF(D67="","",D67-D64) -> 
A70: 17 | Q70: =IF(AND(ISBLANK(B70), ISBLANK(C70)), "X", "") -> X
C71: Change | D71: =IF(D70="","",D70-D67) -> 
A73: 18 | Q73: =IF(AND(ISBLANK(B73), ISBLANK(C73)), "X", "") -> X
C74: Change | D74: =IF(D73="","",D73-D70) -> 
R75: Page Break 1
A76: 19 | Q76: =IF(AND(ISBLANK(B76), ISBLANK(C76)), "X", "") -> X
C77: Change | D77: =IF(D76="","",D76-D73) -> 
A79: 20 | Q79: =IF(AND(ISBLANK(B79), ISBLANK(C79)), "X", "") -> X
C80: Change | D80: =IF(D79="","",D79-D76) -> 
A82: 21 | Q82: =IF(AND(ISBLANK(B82), ISBLANK(C82)), "X", "") -> X
C83: Change | D83: =IF(D82="","",D82-D79) -> 
A85: 22 | Q85: =IF(AND(ISBLANK(B85), ISBLANK(C85)), "X", "") -> X
C86: Change | D86: =IF(D85="","",D85-D82) -> 
A88: 23 | Q88: =IF(AND(ISBLANK(B88), ISBLANK(C88)), "X", "") -> X
C89: Change | D89: =IF(D88="","",D88-D85) -> 
A91: 24 | Q91: =IF(AND(ISBLANK(B91), ISBLANK(C91)), "X", "") -> X
C92: Change | D92: =IF(D91="","",D91-D88) -> 
A94: 25 | Q94: =IF(AND(ISBLANK(B94), ISBLANK(C94)), "X", "") -> X
C95: Change | D95: =IF(D94="","",D94-D91) -> 
A97: 26 | Q97: =IF(AND(ISBLANK(B97), ISBLANK(C97)), "X", "") -> X
C98: Change | D98: =IF(D97="","",D97-D94) -> 
A100: 27 | Q100: =IF(AND(ISBLANK(B100), ISBLANK(C100)), "X", "") -> X
C101: Change | D101: =IF(D100="","",D100-D97) -> 
A103: 28 | Q103: =IF(AND(ISBLANK(B103), ISBLANK(C103)), "X", "") -> X
C104: Change | D104: =IF(D103="","",D103-D100) -> 
A106: 29 | Q106: =IF(AND(ISBLANK(B106), ISBLANK(C106)), "X", "") -> X
C107: Change | D107: =IF(D106="","",D106-D103) -> 
A109: 30 | Q109: =IF(AND(ISBLANK(B109), ISBLANK(C109)), "X", "") -> X
C110: Change | D110: =IF(D109="","",D109-D106) -> 
A112: 31 | Q112: =IF(AND(ISBLANK(B112), ISBLANK(C112)), "X", "") -> X
C113: Change | D113: =IF(D112="","",D112-D109) -> 
A115: 32 | Q115: =IF(AND(ISBLANK(B115), ISBLANK(C115)), "X", "") -> X
C116: Change | D116: =IF(D115="","",D115-D112) -> 
A118: 33 | Q118: =IF(AND(ISBLANK(B118), ISBLANK(C118)), "X", "") -> X
C119: Change | D119: =IF(D118="","",D118-D115) -> 
A121: 34 | Q121: =IF(AND(ISBLANK(B121), ISBLANK(C121)), "X", "") -> X
C122: Change | D122: =IF(D121="","",D121-D118) -> 
A124: 35 | Q124: =IF(AND(ISBLANK(B124), ISBLANK(C124)), "X", "") -> X
C125: Change | D125: =IF(D124="","",D124-D121) -> 
A127: 36 | Q127: =IF(AND(ISBLANK(B127), ISBLANK(C127)), "X", "") -> X
C128: Change | D128: =IF(D127="","",D127-D124) -> 
R129: Page Break 2
A130: 37 | Q130: =IF(AND(ISBLANK(B130), ISBLANK(C130)), "X", "") -> X
C131: Change | D131: =IF(D130="","",D130-D127) -> 
A133: 38 | Q133: =IF(AND(ISBLANK(B133), ISBLANK(C133)), "X", "") -> X
C134: Change | D134: =IF(D133="","",D133-D130) -> 
A136: 39 | Q136: =IF(AND(ISBLANK(B136), ISBLANK(C136)), "X", "") -> X
C137: Change | D137: =IF(D136="","",D136-D133) -> 
A139: 40 | Q139: =IF(AND(ISBLANK(B139), ISBLANK(C139)), "X", "") -> X
C140: Change | D140: =IF(D139="","",D139-D136) -> 
A142: 41 | Q142: =IF(AND(ISBLANK(B142), ISBLANK(C142)), "X", "") -> X
C143: Change | D143: =IF(D142="","",D142-D139) -> 
A145: 42 | Q145: =IF(AND(ISBLANK(B145), ISBLANK(C145)), "X", "") -> X
C146: Change | D146: =IF(D145="","",D145-D142) -> 
A148: 43 | Q148: =IF(AND(ISBLANK(B148), ISBLANK(C148)), "X", "") -> X
C149: Change | D149: =IF(D148="","",D148-D145) -> 
A151: 44 | Q151: =IF(AND(ISBLANK(B151), ISBLANK(C151)), "X", "") -> X
C152: Change | D152: =IF(D151="","",D151-D148) -> 
A154: 45 | Q154: =IF(AND(ISBLANK(B154), ISBLANK(C154)), "X", "") -> X
C155: Change | D155: =IF(D154="","",D154-D151) -> 
A157: 46 | Q157: =IF(AND(ISBLANK(B157), ISBLANK(C157)), "X", "") -> X
C158: Change | D158: =IF(D157="","",D157-D154) -> 
A160: 47 | Q160: =IF(AND(ISBLANK(B160), ISBLANK(C160)), "X", "") -> X
C161: Change | D161: =IF(D160="","",D160-D157) -> 
A163: 48 | Q163: =IF(AND(ISBLANK(B163), ISBLANK(C163)), "X", "") -> X
C164: Change | D164: =IF(D163="","",D163-D160) -> 
A166: 49 | Q166: =IF(AND(ISBLANK(B166), ISBLANK(C166)), "X", "") -> X
C167: Change | D167: =IF(D166="","",D166-D163) -> 
A169: 50 | Q169: =IF(AND(ISBLANK(B169), ISBLANK(C169)), "X", "") -> X
C170: Change | D170: =IF(D169="","",D169-D166) -> 
A172: 51 | Q172: =IF(AND(ISBLANK(B172), ISBLANK(C172)), "X", "") -> X
C173: Change | D173: =IF(D172="","",D172-D169) -> 
A175: 52 | Q175: =IF(AND(ISBLANK(B175), ISBLANK(C175)), "X", "") -> X
C176: Change | D176: =IF(D175="","",D175-D172) -> 
A178: 53 | Q178: =IF(AND(ISBLANK(B178), ISBLANK(C178)), "X", "") -> X
C179: Change | D179: =IF(D178="","",D178-D175) -> 
R180: Page Break 3
A181: 54 | Q181: =IF(AND(ISBLANK(B181), ISBLANK(C181)), "X", "") -> X
C182: Change | D182: =IF(D181="","",D181-D178) -> 
A184: 55 | Q184: =IF(AND(ISBLANK(B184), ISBLANK(C184)), "X", "") -> X
C185: Change | D185: =IF(D184="","",D184-D181) -> 
A187: 56 | Q187: =IF(AND(ISBLANK(B187), ISBLANK(C187)), "X", "") -> X
C188: Change | D188: =IF(D187="","",D187-D184) -> 
A190: 57 | Q190: =IF(AND(ISBLANK(B190), ISBLANK(C190)), "X", "") -> X
C191: Change | D191: =IF(D190="","",D190-D187) -> 
A193: 58 | Q193: =IF(AND(ISBLANK(B193), ISBLANK(C193)), "X", "") -> X
C194: Change | D194: =IF(D193="","",D193-D190) -> 
A196: 59 | Q196: =IF(AND(ISBLANK(B196), ISBLANK(C196)), "X", "") -> X
C197: Change | D197: =IF(D196="","",D196-D193) -> 
A199: 60 | Q199: =IF(AND(ISBLANK(B199), ISBLANK(C199)), "X", "") -> X
C200: Change | D200: =IF(D199="","",D199-D196) -> 
R202: Page Break 4
